[Event "Titled Tuesday Blitz May 2 Early 2023"]
[White "Rom, Jasper"]
[Black "Ismagilov, Damir"]
[WhiteFideId "2023733"]
[BlackFideId "34199982"]
[WhiteElo "2233"]
[BlackElo "2078"]
[Result "1-0"]
[Round "06"]
[TimeControl "180+2"]
[Date "2023.05.02"]
[WhiteClock "0:01:02"]
[BlackClock "0:00:20"]

1. e4 {[%clk 0:02:59]}  e6 {[%clk 0:02:59]} 2. d4 {[%clk 0:02:58]}  d5 {[%clk 0:02:59]} 3. Bd3 {[%clk 0:02:58]}  dxe4 {[%clk 0:02:58]} 4. Bxe4 {[%clk 0:02:58]}  Nf6 {[%clk 0:02:58]} 5. Bf3 {[%clk 0:02:58]}  c5 {[%clk 0:02:59]} 6. Ne2 {[%clk 0:02:57]}  Nc6 {[%clk 0:02:59]} 7. Be3 {[%clk 0:02:58]}  cxd4 {[%clk 0:02:55]} 8. Nxd4 {[%clk 0:02:58]}  Ne5 {[%clk 0:02:55]} 9. O-O {[%clk 0:02:57]}  Nxf3+ {[%clk 0:02:55]} 10. Qxf3 {[%clk 0:02:56]}  Be7 {[%clk 0:02:50]} 11. Rd1 {[%clk 0:02:51]}  Qd5 {[%clk 0:02:48]} 12. Nc3 {[%clk 0:02:42]}  Qxf3 {[%clk 0:02:47]} 13. Nxf3 {[%clk 0:02:43]}  Bd7 {[%clk 0:02:44]} 14. Ne5 {[%clk 0:02:41]}  a6 {[%clk 0:02:40]} 15. Bg5 {[%clk 0:02:38]}  Rd8 {[%clk 0:02:34]} 16. Rd3 {[%clk 0:02:30]}  h6 {[%clk 0:02:26]} 17. Bh4 {[%clk 0:02:26]}  Bc6 {[%clk 0:02:11]} 18. Rxd8+ {[%clk 0:02:21]}  Bxd8 {[%clk 0:02:12]} 19. Nxc6 {[%clk 0:02:10]}  bxc6 {[%clk 0:02:12]} 20. Rd1 {[%clk 0:02:11]}  Nd5 {[%clk 0:01:54]} 21. Bxd8 {[%clk 0:01:53]}  Kxd8 {[%clk 0:01:53]} 22. Ne4 {[%clk 0:01:53]}  Kc7 {[%clk 0:01:44]} 23. c4 {[%clk 0:01:53]}  Nf6 {[%clk 0:01:35]} 24. Nc5 {[%clk 0:01:52]}  a5 {[%clk 0:01:30]} 25. Kf1 {[%clk 0:01:47]}  Ra8 {[%clk 0:01:19]} 26. b3 {[%clk 0:01:46]}  Kb6 {[%clk 0:01:00]} 27. Na4+ {[%clk 0:01:45]}  Kc7 {[%clk 0:00:59]} 28. f3 {[%clk 0:01:45]}  Re8 {[%clk 0:00:54]} 29. Ke2 {[%clk 0:01:40]}  e5 {[%clk 0:00:53]} 30. Nc5 {[%clk 0:01:37]}  e4 {[%clk 0:00:54]} 31. f4 {[%clk 0:01:37]}  h5 {[%clk 0:00:43]} 32. h3 {[%clk 0:01:37]}  h4 {[%clk 0:00:43]} 33. Ke3 {[%clk 0:01:36]}  g6 {[%clk 0:00:43]} 34. Rd4 {[%clk 0:01:33]}  Kb6 {[%clk 0:00:38]} 35. Nxe4 {[%clk 0:01:24]}  Nxe4 {[%clk 0:00:17]} 36. Rxe4 {[%clk 0:01:23]}  Rxe4+ {[%clk 0:00:18]} 37. Kxe4 {[%clk 0:01:23]}  Kc5 {[%clk 0:00:19]} 38. Ke5 {[%clk 0:01:15]}  Kb4 {[%clk 0:00:16]} 39. Kd6 {[%clk 0:01:14]}  Ka3 {[%clk 0:00:13]} 40. Kxc6 {[%clk 0:01:13]}  Kxa2 {[%clk 0:00:14]} 41. Kb5 {[%clk 0:01:11]}  Kxb3 {[%clk 0:00:14]} 42. c5 {[%clk 0:01:07]}  a4 {[%clk 0:00:15]} 43. c6 {[%clk 0:01:07]}  a3 {[%clk 0:00:16]} 44. c7 {[%clk 0:01:08]}  a2 {[%clk 0:00:17]} 45. c8=Q {[%clk 0:01:08]}  a1=Q {[%clk 0:00:17]} 46. Qc4+ {[%clk 0:01:06]}  Kb2 {[%clk 0:00:14]} 47. Qd4+ {[%clk 0:01:06]}  Ka2 {[%clk 0:00:14]} 48. Qxa1+ {[%clk 0:01:04]}  Kxa1 {[%clk 0:00:15]} 49. Kc6 {[%clk 0:01:03]}  Kb2 {[%clk 0:00:16]} 50. Kd6 {[%clk 0:01:03]}  Kc3 {[%clk 0:00:15]} 51. Ke7 {[%clk 0:01:03]}  Kd4 {[%clk 0:00:16]} 52. Kxf7 {[%clk 0:01:03]}  Ke4 {[%clk 0:00:17]} 53. Kxg6 {[%clk 0:01:03]}  Kxf4 {[%clk 0:00:18]} 54. Kh5 {[%clk 0:01:02]}  Kg3 {[%clk 0:00:18]} 55. Kg5 {[%clk 0:01:02]}  Kxg2 {[%clk 0:00:19]} 56. Kxh4 {[%clk 0:01:02]}  Kf3 {[%clk 0:00:20]} 57. Kg5 {[%clk 0:01:02]} 1-0


[Site "https://www.chess.com"]

[Event "Titled Tuesday Blitz May 2 Early 2023"]
[White "Ezat, Mohamed"]
[Black "Nemec, Jachym"]
[WhiteFideId "10600906"]
[BlackFideId "23716525"]
[WhiteElo "2386"]
[BlackElo "2305"]
[Result "1/2-1/2"]
[Round "06"]
[TimeControl "180+2"]
[Date "2023.05.02"]
[WhiteClock "0:00:06"]
[BlackClock "0:01:22"]

1. d4 {[%clk 0:03:00]}  Nf6 {[%clk 0:02:59]} 2. c4 {[%clk 0:03:00]}  e6 {[%clk 0:02:59]} 3. Nc3 {[%clk 0:03:00]}  Bb4 {[%clk 0:03:00]} 4. f3 {[%clk 0:03:00]}  c5 {[%clk 0:02:59]} 5. d5 {[%clk 0:02:59]}  d6 {[%clk 0:02:59]} 6. Bd2 {[%clk 0:02:55]}  O-O {[%clk 0:02:58]} 7. e4 {[%clk 0:02:54]}  Re8 {[%clk 0:02:54]} 8. a3 {[%clk 0:02:46]}  Ba5 {[%clk 0:02:51]} 9. Nge2 {[%clk 0:02:30]}  Nbd7 {[%clk 0:02:48]} 10. Ng3 {[%clk 0:02:25]}  exd5 {[%clk 0:02:46]} 11. cxd5 {[%clk 0:02:24]}  Ne5 {[%clk 0:02:47]} 12. Be2 {[%clk 0:02:23]}  Bd7 {[%clk 0:02:47]} 13. O-O {[%clk 0:02:23]}  c4 {[%clk 0:02:47]} 14. Kh1 {[%clk 0:02:12]}  b5 {[%clk 0:02:46]} 15. f4 {[%clk 0:02:04]}  Ng6 {[%clk 0:02:45]} 16. f5 {[%clk 0:01:58]}  Ne5 {[%clk 0:02:44]} 17. Bg5 {[%clk 0:01:58]}  Qc8 {[%clk 0:02:07]} 18. Bxf6 {[%clk 0:01:57]}  gxf6 {[%clk 0:02:08]} 19. Qd2 {[%clk 0:01:57]}  Kh8 {[%clk 0:01:59]} 20. Qh6 {[%clk 0:01:56]}  Bd8 {[%clk 0:01:59]} 21. Nh5 {[%clk 0:01:54]}  Rg8 {[%clk 0:01:59]} 22. Nxf6 {[%clk 0:01:53]}  Rg7 {[%clk 0:01:59]} 23. Nh5 {[%clk 0:01:50]}  Rg5 {[%clk 0:01:49]} 24. Qxd6 {[%clk 0:01:46]}  f6 {[%clk 0:01:46]} 25. Qf8+ {[%clk 0:01:34]}  Rg8 {[%clk 0:01:46]} 26. Qh6 {[%clk 0:01:35]}  Nf7 {[%clk 0:01:43]} 27. Qe3 {[%clk 0:01:31]}  Bb6 {[%clk 0:01:42]} 28. Qh3 {[%clk 0:01:29]}  Ng5 {[%clk 0:01:41]} 29. Qh4 {[%clk 0:01:30]}  Qf8 {[%clk 0:01:41]} 30. Nf4 {[%clk 0:01:29]}  Bc7 {[%clk 0:01:39]} 31. Ng6+ {[%clk 0:01:27]}  Rxg6 {[%clk 0:01:37]} 32. fxg6 {[%clk 0:01:27]}  Qg7 {[%clk 0:01:36]} 33. gxh7 {[%clk 0:01:21]}  Be5 {[%clk 0:01:36]} 34. Bg4 {[%clk 0:01:20]}  a6 {[%clk 0:01:31]} 35. Bxd7 {[%clk 0:01:16]}  Qxd7 {[%clk 0:01:32]} 36. Ne2 {[%clk 0:01:15]}  Ra7 {[%clk 0:01:32]} 37. Nf4 {[%clk 0:01:14]}  Qe8 {[%clk 0:01:31]} 38. Qg4 {[%clk 0:00:53]}  Rxh7 {[%clk 0:01:31]} 39. h3 {[%clk 0:00:28]}  Bxb2 {[%clk 0:01:29]} 40. Rad1 {[%clk 0:00:23]}  Be5 {[%clk 0:01:27]} 41. d6 {[%clk 0:00:17]}  c3 {[%clk 0:01:28]} 42. d7 {[%clk 0:00:16]}  Qd8 {[%clk 0:01:28]} 43. Ne6 {[%clk 0:00:16]}  Nxe6 {[%clk 0:01:28]} 44. Qxe6 {[%clk 0:00:16]}  Rg7 {[%clk 0:01:26]} 45. Qe8+ {[%clk 0:00:15]}  Rg8 {[%clk 0:01:27]} 46. Qh5+ {[%clk 0:00:09]}  Kg7 {[%clk 0:01:27]} 47. Rf5 {[%clk 0:00:07]}  c2 {[%clk 0:01:24]} 48. Rdf1 {[%clk 0:00:07]}  Qxd7 {[%clk 0:01:22]} 49. Rxe5 {[%clk 0:00:08]}  fxe5 {[%clk 0:01:20]} 50. Qg5+ {[%clk 0:00:08]}  Kh8 {[%clk 0:01:20]} 51. Qh6+ {[%clk 0:00:09]}  Qh7 {[%clk 0:01:20]} 52. Qf6+ {[%clk 0:00:09]}  Qg7 {[%clk 0:01:20]} 53. Qh4+ {[%clk 0:00:09]}  Qh7 {[%clk 0:01:21]} 54. Qf6+ {[%clk 0:00:09]}  Qg7 {[%clk 0:01:21]} 55. Qh4+ {[%clk 0:00:09]}  Qh7 {[%clk 0:01:22]} 56. Qf6+ {[%clk 0:00:06]} 1/2-1/2


[Site "https://www.chess.com"]

[Event "Titled Tuesday Blitz May 2 Early 2023"]
[White "Korelskiy, Egor"]
[Black "Dronavalli, Harika"]
[WhiteFideId "34329064"]
[BlackFideId "5015197"]
[WhiteElo "2186"]
[BlackElo "2432"]
[Result "0-1"]
[Round "06"]
[TimeControl "180+2"]
[Date "2023.05.02"]
[WhiteClock "0:00:04"]
[BlackClock "0:00:50"]

1. e4 {[%clk 0:03:00]}  Nc6 {[%clk 0:02:59]} 2. Nf3 {[%clk 0:02:59]}  d6 {[%clk 0:02:58]} 3. d4 {[%clk 0:02:59]}  g6 {[%clk 0:02:59]} 4. Nc3 {[%clk 0:02:56]}  Bg7 {[%clk 0:02:59]} 5. Be3 {[%clk 0:02:54]}  Nf6 {[%clk 0:02:55]} 6. d5 {[%clk 0:02:53]}  Ne5 {[%clk 0:02:54]} 7. h3 {[%clk 0:02:49]}  O-O {[%clk 0:02:54]} 8. Nd4 {[%clk 0:02:47]}  c5 {[%clk 0:02:53]} 9. dxc6 {[%clk 0:02:45]}  Nxc6 {[%clk 0:02:53]} 10. Be2 {[%clk 0:02:40]}  Bd7 {[%clk 0:02:53]} 11. O-O {[%clk 0:02:34]}  a6 {[%clk 0:02:53]} 12. a3 {[%clk 0:02:28]}  Rc8 {[%clk 0:02:51]} 13. Qd2 {[%clk 0:02:25]}  b5 {[%clk 0:02:50]} 14. f3 {[%clk 0:02:23]}  Ne5 {[%clk 0:02:49]} 15. Rad1 {[%clk 0:02:14]}  Qc7 {[%clk 0:02:47]} 16. Nb3 {[%clk 0:01:31]}  Be6 {[%clk 0:02:39]} 17. Nd4 {[%clk 0:01:08]}  Bc4 {[%clk 0:02:39]} 18. Bg5 {[%clk 0:01:04]}  Qa7 {[%clk 0:02:28]} 19. Be3 {[%clk 0:01:00]}  Qb7 {[%clk 0:02:27]} 20. b3 {[%clk 0:00:57]}  Bxe2 {[%clk 0:02:25]} 21. Ncxe2 {[%clk 0:00:57]}  Rfd8 {[%clk 0:02:17]} 22. Nf4 {[%clk 0:00:54]}  Ned7 {[%clk 0:02:12]} 23. Nde2 {[%clk 0:00:50]}  Qc7 {[%clk 0:02:11]} 24. Rc1 {[%clk 0:00:48]}  Nc5 {[%clk 0:02:09]} 25. Rfd1 {[%clk 0:00:44]}  e6 {[%clk 0:02:05]} 26. h4 {[%clk 0:00:31]}  Qe7 {[%clk 0:02:01]} 27. Qe1 {[%clk 0:00:18]}  h5 {[%clk 0:01:54]} 28. Ng3 {[%clk 0:00:17]}  Qc7 {[%clk 0:01:31]} 29. Nge2 {[%clk 0:00:16]}  Ncd7 {[%clk 0:01:28]} 30. Qf2 {[%clk 0:00:14]}  Nc5 {[%clk 0:01:22]} 31. Nd3 {[%clk 0:00:09]}  Nfd7 {[%clk 0:01:19]} 32. Nxc5 {[%clk 0:00:09]}  Nxc5 {[%clk 0:01:19]} 33. Bd4 {[%clk 0:00:09]}  e5 {[%clk 0:01:19]} 34. Be3 {[%clk 0:00:09]}  Ne6 {[%clk 0:01:19]} 35. c4 {[%clk 0:00:08]}  Qe7 {[%clk 0:01:13]} 36. Nc3 {[%clk 0:00:07]}  bxc4 {[%clk 0:01:13]} 37. Nd5 {[%clk 0:00:08]}  Qf8 {[%clk 0:01:01]} 38. Rxc4 {[%clk 0:00:06]}  Rxc4 {[%clk 0:01:00]} 39. bxc4 {[%clk 0:00:07]}  Rc8 {[%clk 0:00:57]} 40. Qe2 {[%clk 0:00:06]}  Nc7 {[%clk 0:00:57]} 41. Nb6 {[%clk 0:00:05]}  Rd8 {[%clk 0:00:57]} 42. c5 {[%clk 0:00:04]}  dxc5 {[%clk 0:00:55]} 43. Rxd8 {[%clk 0:00:03]}  Qxd8 {[%clk 0:00:55]} 44. Bxc5 {[%clk 0:00:04]}  Qxh4 {[%clk 0:00:54]} 45. Bf2 {[%clk 0:00:04]}  Qd8 {[%clk 0:00:53]} 46. Qc4 {[%clk 0:00:05]}  Bh6 {[%clk 0:00:51]} 47. Qc6 {[%clk 0:00:04]}  Qd1+ {[%clk 0:00:49]} 48. Kh2 {[%clk 0:00:05]}  Bf4+ {[%clk 0:00:49]} 49. g3 {[%clk 0:00:05]}  Qe2 {[%clk 0:00:48]} 50. Kg2 {[%clk 0:00:05]}  Be3 {[%clk 0:00:48]} 51. Qxc7 {[%clk 0:00:03]}  Qxf2+ {[%clk 0:00:49]} 52. Kh3 {[%clk 0:00:04]}  Qf1+ {[%clk 0:00:49]} 53. Kh2 {[%clk 0:00:04]}  Qg1+ {[%clk 0:00:49]} 54. Kh3 {[%clk 0:00:04]}  Qh1# {[%clk 0:00:50]} 0-1


[Site "https://www.chess.com"]

[Event "Titled Tuesday Blitz May 2 Early 2023"]
[White "Shukhman, Anna"]
[Black "Nikologorskiy, Konstantin"]
[WhiteFideId "54180058"]
[BlackFideId "24111708"]
[WhiteElo "2125"]
[BlackElo "2293"]
[Result "1-0"]
[Round "06"]
[TimeControl "180+2"]
[Date "2023.05.02"]
[WhiteClock "0:01:29"]
[BlackClock "0:00:01"]

1. e4 {[%clk 0:03:00]}  c5 {[%clk 0:02:58]} 2. Nf3 {[%clk 0:03:00]}  d6 {[%clk 0:02:56]} 3. d4 {[%clk 0:03:00]}  cxd4 {[%clk 0:02:57]} 4. Nxd4 {[%clk 0:03:00]}  Nf6 {[%clk 0:02:56]} 5. Nc3 {[%clk 0:03:01]}  a6 {[%clk 0:02:56]} 6. Qd3 {[%clk 0:03:01]}  g6 {[%clk 0:02:40]} 7. Bg5 {[%clk 0:02:58]}  Bg7 {[%clk 0:02:40]} 8. O-O-O {[%clk 0:02:56]}  O-O {[%clk 0:02:36]} 9. h4 {[%clk 0:02:53]}  Nbd7 {[%clk 0:02:32]} 10. f4 {[%clk 0:02:50]}  Nc5 {[%clk 0:02:29]} 11. Qe3 {[%clk 0:02:49]}  Ng4 {[%clk 0:02:25]} 12. Qg3 {[%clk 0:02:47]}  h6 {[%clk 0:02:11]} 13. Be2 {[%clk 0:02:45]}  h5 {[%clk 0:01:53]} 14. f5 {[%clk 0:02:34]}  Be5 {[%clk 0:01:53]} 15. Bf4 {[%clk 0:02:34]}  Bxf4+ {[%clk 0:01:43]} 16. Qxf4 {[%clk 0:02:34]}  e5 {[%clk 0:01:43]} 17. fxe6 {[%clk 0:02:28]}  fxe6 {[%clk 0:01:44]} 18. Qg3 {[%clk 0:02:22]}  e5 {[%clk 0:01:31]} 19. Bc4+ {[%clk 0:02:17]}  Kg7 {[%clk 0:01:26]} 20. Nf3 {[%clk 0:02:15]}  b5 {[%clk 0:01:17]} 21. Bd5 {[%clk 0:02:13]}  Ra7 {[%clk 0:01:17]} 22. a3 {[%clk 0:01:49]}  Rc7 {[%clk 0:01:11]} 23. Rd2 {[%clk 0:01:42]}  Be6 {[%clk 0:00:50]} 24. Ng5 {[%clk 0:01:41]}  Bxd5 {[%clk 0:00:38]} 25. Nxd5 {[%clk 0:01:40]}  Rc6 {[%clk 0:00:17]} 26. Re1 {[%clk 0:01:37]}  Qb8 {[%clk 0:00:06]} 27. b4 {[%clk 0:01:32]}  Na4 {[%clk 0:00:05]} 28. Ne6+ {[%clk 0:01:31]}  Kh7 {[%clk 0:00:05]} 29. Nxf8+ {[%clk 0:01:32]}  Qxf8 {[%clk 0:00:06]} 30. Qf3 {[%clk 0:01:30]}  Qe8 {[%clk 0:00:02]} 31. Qxg4 {[%clk 0:01:29]}  hxg4 {[%clk 0:00:01]} 32. Nf6+ {[%clk 0:01:28]}  Kg7 {[%clk 0:00:01]} 33. Nxe8+ {[%clk 0:01:29]} 1-0


[Site "https://www.chess.com"]

[Event "Titled Tuesday Blitz May 2 Early 2023"]
[White "Saya, Ethan"]
[Black "Martinez Reyes, Pedro Ramon"]
[WhiteFideId "26095181"]
[BlackFideId "3901807"]
[WhiteElo "2189"]
[BlackElo "2340"]
[Result "1-0"]
[Round "06"]
[TimeControl "180+2"]
[Date "2023.05.02"]
[WhiteClock "0:00:03"]
[BlackClock "0:00:05"]

1. e4 {[%clk 0:02:59]}  Nc6 {[%clk 0:02:59]} 2. Nf3 {[%clk 0:02:59]}  d6 {[%clk 0:02:56]} 3. d4 {[%clk 0:02:58]}  Nf6 {[%clk 0:02:57]} 4. d5 {[%clk 0:02:58]}  Nb8 {[%clk 0:02:56]} 5. Nc3 {[%clk 0:02:45]}  g6 {[%clk 0:02:52]} 6. h3 {[%clk 0:02:42]}  Bg7 {[%clk 0:02:53]} 7. Be3 {[%clk 0:02:42]}  O-O {[%clk 0:02:53]} 8. Qd2 {[%clk 0:02:42]}  c6 {[%clk 0:02:54]} 9. Bh6 {[%clk 0:02:39]}  b6 {[%clk 0:02:35]} 10. Be2 {[%clk 0:02:24]}  Bb7 {[%clk 0:02:34]} 11. Bxg7 {[%clk 0:02:15]}  Kxg7 {[%clk 0:02:34]} 12. O-O {[%clk 0:02:07]}  a6 {[%clk 0:02:35]} 13. Qd4 {[%clk 0:02:00]}  Nd7 {[%clk 0:02:30]} 14. dxc6 {[%clk 0:01:46]}  Bxc6 {[%clk 0:02:30]} 15. e5 {[%clk 0:01:46]}  dxe5 {[%clk 0:02:23]} 16. Nxe5 {[%clk 0:01:47]}  Nxe5 {[%clk 0:02:09]} 17. Qxe5 {[%clk 0:01:48]}  Qd7 {[%clk 0:02:08]} 18. Rad1 {[%clk 0:01:47]}  Qb7 {[%clk 0:02:08]} 19. f3 {[%clk 0:01:39]}  b5 {[%clk 0:02:07]} 20. Bd3 {[%clk 0:01:35]}  Kg8 {[%clk 0:01:44]} 21. Rfe1 {[%clk 0:01:34]}  Rfe8 {[%clk 0:01:42]} 22. Ne4 {[%clk 0:01:32]}  Nxe4 {[%clk 0:01:15]} 23. Bxe4 {[%clk 0:01:33]}  Rac8 {[%clk 0:01:15]} 24. c3 {[%clk 0:01:29]}  b4 {[%clk 0:01:02]} 25. Bxc6 {[%clk 0:01:07]}  Rxc6 {[%clk 0:01:03]} 26. cxb4 {[%clk 0:01:06]}  Qxb4 {[%clk 0:01:04]} 27. b3 {[%clk 0:01:05]}  Rc2 {[%clk 0:00:55]} 28. Re2 {[%clk 0:01:02]}  Rxe2 {[%clk 0:00:37]} 29. Qxe2 {[%clk 0:01:03]}  a5 {[%clk 0:00:37]} 30. Qd2 {[%clk 0:00:59]}  Qc5+ {[%clk 0:00:33]} 31. Qd4 {[%clk 0:01:00]}  Qa3 {[%clk 0:00:32]} 32. Rd2 {[%clk 0:00:58]}  e6 {[%clk 0:00:31]} 33. Rc2 {[%clk 0:00:53]}  h5 {[%clk 0:00:22]} 34. Kh2 {[%clk 0:00:51]}  Qe7 {[%clk 0:00:14]} 35. Qc5 {[%clk 0:00:50]}  Qf6 {[%clk 0:00:11]} 36. Qxa5 {[%clk 0:00:39]}  Qf4+ {[%clk 0:00:08]} 37. Kh1 {[%clk 0:00:38]}  h4 {[%clk 0:00:08]} 38. Qd2 {[%clk 0:00:35]}  Qg3 {[%clk 0:00:07]} 39. Qf2 {[%clk 0:00:34]}  Qg5 {[%clk 0:00:07]} 40. Rc4 {[%clk 0:00:32]}  Qa5 {[%clk 0:00:04]} 41. Rxh4 {[%clk 0:00:30]}  Rd8 {[%clk 0:00:05]} 42. Qb2 {[%clk 0:00:08]}  Rd1+ {[%clk 0:00:04]} 43. Kh2 {[%clk 0:00:08]}  Qc7+ {[%clk 0:00:04]} 44. g3 {[%clk 0:00:07]}  e5 {[%clk 0:00:04]} 45. Rc4 {[%clk 0:00:05]}  Qd7 {[%clk 0:00:05]} 46. Rc2 {[%clk 0:00:05]}  Rd3 {[%clk 0:00:05]} 47. Rf2 {[%clk 0:00:05]}  Qd5 {[%clk 0:00:04]} 48. Qe2 {[%clk 0:00:05]}  f5 {[%clk 0:00:04]} 49. h4 {[%clk 0:00:05]}  e4 {[%clk 0:00:04]} 50. fxe4 {[%clk 0:00:05]}  fxe4 {[%clk 0:00:05]} 51. Qg4 {[%clk 0:00:04]}  Qd6 {[%clk 0:00:04]} 52. Rf1 {[%clk 0:00:02]}  Rd2+ {[%clk 0:00:04]} 53. Kh3 {[%clk 0:00:02]}  e3 {[%clk 0:00:05]} 54. Qf3 {[%clk 0:00:02]}  Qd7+ {[%clk 0:00:04]} 55. g4 {[%clk 0:00:02]}  Rd3 {[%clk 0:00:04]} 56. Qf8+ {[%clk 0:00:02]}  Kh7 {[%clk 0:00:05]} 57. Rf7+ {[%clk 0:00:03]} 1-0


[Site "https://www.chess.com"]

[Event "Titled Tuesday Blitz May 2 Early 2023"]
[White "Daeschler, Florian"]
[Black "Gontcharov, Vladislav"]
[WhiteFideId "20678193"]
[BlackFideId "4123492"]
[WhiteElo "2221"]
[BlackElo "2420"]
[Result "0-1"]
[Round "06"]
[TimeControl "180+2"]
[Date "2023.05.02"]
[WhiteClock "0:00:06"]
[BlackClock "0:00:21"]

1. d4 {[%clk 0:03:00]}  Nf6 {[%clk 0:02:59]} 2. c4 {[%clk 0:03:01]}  e6 {[%clk 0:02:59]} 3. g3 {[%clk 0:03:01]}  Bb4+ {[%clk 0:02:55]} 4. Bd2 {[%clk 0:03:01]}  Qe7 {[%clk 0:02:55]} 5. Nf3 {[%clk 0:03:00]}  O-O {[%clk 0:02:55]} 6. Bg2 {[%clk 0:02:59]}  a5 {[%clk 0:02:53]} 7. O-O {[%clk 0:02:59]}  b6 {[%clk 0:02:51]} 8. Nc3 {[%clk 0:02:53]}  Bb7 {[%clk 0:02:50]} 9. Rc1 {[%clk 0:02:46]}  Na6 {[%clk 0:02:47]} 10. a3 {[%clk 0:02:46]}  Bxc3 {[%clk 0:02:47]} 11. Bxc3 {[%clk 0:02:46]}  d6 {[%clk 0:02:46]} 12. d5 {[%clk 0:02:41]}  exd5 {[%clk 0:02:30]} 13. Nd4 {[%clk 0:02:34]}  Rfe8 {[%clk 0:02:01]} 14. Re1 {[%clk 0:02:29]}  Nc5 {[%clk 0:01:46]} 15. Nf5 {[%clk 0:02:27]}  Qd7 {[%clk 0:01:20]} 16. Nh6+ {[%clk 0:02:20]}  Kf8 {[%clk 0:01:10]} 17. Bxf6 {[%clk 0:02:18]}  gxf6 {[%clk 0:01:10]} 18. cxd5 {[%clk 0:02:11]}  Re5 {[%clk 0:00:55]} 19. e4 {[%clk 0:02:10]}  Rae8 {[%clk 0:00:45]} 20. Nf5 {[%clk 0:01:55]}  Rxf5 {[%clk 0:00:36]} 21. exf5 {[%clk 0:01:54]}  Rxe1+ {[%clk 0:00:35]} 22. Qxe1 {[%clk 0:01:53]}  Nd3 {[%clk 0:00:35]} 23. Qd2 {[%clk 0:01:39]}  Nxc1 {[%clk 0:00:35]} 24. Qxc1 {[%clk 0:01:34]}  Ke8 {[%clk 0:00:35]} 25. g4 {[%clk 0:01:30]}  Kd8 {[%clk 0:00:34]} 26. Qh6 {[%clk 0:01:31]}  Qe7 {[%clk 0:00:33]} 27. Qe3 {[%clk 0:01:12]}  Qe5 {[%clk 0:00:27]} 28. Qxe5 {[%clk 0:01:04]}  dxe5 {[%clk 0:00:27]} 29. Kf1 {[%clk 0:00:59]}  Kd7 {[%clk 0:00:27]} 30. h4 {[%clk 0:00:52]}  h6 {[%clk 0:00:24]} 31. Ke2 {[%clk 0:00:43]}  Kd6 {[%clk 0:00:24]} 32. Kd3 {[%clk 0:00:44]}  Bxd5 {[%clk 0:00:24]} 33. Bf1 {[%clk 0:00:41]}  c5 {[%clk 0:00:24]} 34. Be2 {[%clk 0:00:41]}  b5 {[%clk 0:00:24]} 35. Kc3 {[%clk 0:00:41]}  c4 {[%clk 0:00:25]} 36. b3 {[%clk 0:00:25]}  Kc5 {[%clk 0:00:22]} 37. b4+ {[%clk 0:00:25]}  axb4+ {[%clk 0:00:22]} 38. axb4+ {[%clk 0:00:25]}  Kd6 {[%clk 0:00:22]} 39. Bd1 {[%clk 0:00:22]}  Be4 {[%clk 0:00:22]} 40. Be2 {[%clk 0:00:21]}  Kd5 {[%clk 0:00:22]} 41. f3 {[%clk 0:00:19]}  Bb1 {[%clk 0:00:23]} 42. Kb2 {[%clk 0:00:19]}  Bd3 {[%clk 0:00:22]} 43. Bxd3 {[%clk 0:00:08]}  cxd3 {[%clk 0:00:22]} 44. Kc3 {[%clk 0:00:08]}  d2 {[%clk 0:00:21]} 45. Kxd2 {[%clk 0:00:08]}  Kc4 {[%clk 0:00:22]} 46. Ke3 {[%clk 0:00:05]}  Kxb4 {[%clk 0:00:22]} 47. h5 {[%clk 0:00:05]}  Kc5 {[%clk 0:00:21]} 48. f4 {[%clk 0:00:06]}  exf4+ {[%clk 0:00:21]} 49. Kxf4 {[%clk 0:00:06]}  Kd6 {[%clk 0:00:21]} 0-1


[Site "https://www.chess.com"]

[Event "Titled Tuesday Blitz May 2 Early 2023"]
[White "Sousa, Andre Ventura"]
[Black "Arnold, Ken"]
[WhiteFideId "1917617"]
[BlackFideId "2056836"]
[WhiteElo "2348"]
[BlackElo "2355"]
[Result "1-0"]
[Round "06"]
[TimeControl "180+2"]
[Date "2023.05.02"]
[WhiteClock "0:01:44"]
[BlackClock "0:01:10"]

1. e4 {[%clk 0:03:00]}  c6 {[%clk 0:02:59]} 2. d4 {[%clk 0:03:00]}  d5 {[%clk 0:02:59]} 3. Nd2 {[%clk 0:03:01]}  dxe4 {[%clk 0:02:58]} 4. Nxe4 {[%clk 0:03:02]}  Nf6 {[%clk 0:02:59]} 5. Nxf6+ {[%clk 0:03:02]}  exf6 {[%clk 0:02:59]} 6. Be3 {[%clk 0:03:03]}  Bd6 {[%clk 0:02:59]} 7. Bd3 {[%clk 0:03:03]}  Qc7 {[%clk 0:02:57]} 8. Ne2 {[%clk 0:03:02]}  Be6 {[%clk 0:02:57]} 9. c4 {[%clk 0:02:59]}  Bb4+ {[%clk 0:02:55]} 10. Nc3 {[%clk 0:02:59]}  O-O {[%clk 0:02:54]} 11. O-O {[%clk 0:02:57]}  Rd8 {[%clk 0:02:48]} 12. c5 {[%clk 0:02:47]}  Bxc3 {[%clk 0:02:45]} 13. bxc3 {[%clk 0:02:48]}  Nd7 {[%clk 0:02:43]} 14. Qh5 {[%clk 0:02:45]}  g6 {[%clk 0:02:41]} 15. Qh4 {[%clk 0:02:43]}  f5 {[%clk 0:02:34]} 16. Bg5 {[%clk 0:02:42]}  Re8 {[%clk 0:02:33]} 17. Rfe1 {[%clk 0:02:35]}  b6 {[%clk 0:02:22]} 18. cxb6 {[%clk 0:02:31]}  axb6 {[%clk 0:02:21]} 19. Re3 {[%clk 0:02:30]}  Nf8 {[%clk 0:02:01]} 20. Qh6 {[%clk 0:02:27]}  f6 {[%clk 0:01:54]} 21. Bxf6 {[%clk 0:02:24]}  Qf7 {[%clk 0:01:53]} 22. Be5 {[%clk 0:02:21]}  Bxa2 {[%clk 0:01:47]} 23. h4 {[%clk 0:02:12]}  Bd5 {[%clk 0:01:28]} 24. Rae1 {[%clk 0:02:10]}  Nd7 {[%clk 0:01:24]} 25. Bf4 {[%clk 0:01:55]}  Rxe3 {[%clk 0:01:21]} 26. Rxe3 {[%clk 0:01:56]}  Re8 {[%clk 0:01:17]} 27. Rg3 {[%clk 0:01:48]}  Be4 {[%clk 0:01:12]} 28. h5 {[%clk 0:01:44]}  Bxd3 {[%clk 0:01:10]} 29. hxg6 {[%clk 0:01:44]} 1-0


[Site "https://www.chess.com"]